fUSD/lending_fUSD_20250923
["ID","MTS","AMOUNT","RATE_DAILY","PERIOD"]
[387171085,1758606638955,-400.0,0.00019843,2]
[387171086,1758606638967,-490.21,0.00019843,2]
[387171087,1758606638980,-400.0,0.00019843,2]
[387171088,1758606638992,-400.0,0.00019843,2]
[387171089,1758606639005,-708.2,0.00019843,2]
[387171090,1758606639018,-400.0,0.00019843,2]
[387171091,1758606639030,-400.0,0.00019843,2]
[387171092,1758606639042,-400.0,0.00019843,2]
[387171093,1758606639054,-1094.34,0.00019843,2]
[387171094,1758606639065,-400.0,0.00019843,2]
[387171095,1758606639077,-400.0,0.00019843,2]
[387171096,1758606639088,-400.0,0.00019843,2]
[387171097,1758606639099,-593.45,0.00019843,2]
[387171098,1758606639112,-880.86,0.00019843,2]
[387171099,1758606639123,-5000.0,0.00019896,2]
[387171100,1758606639134,-964.46578188,0.00019896,2]
[387171101,1758606639146,-1486.30958154,0.00019932,2]
[387171102,1758606639157,-200.0,0.00019932,2]
[387171103,1758606639169,-201.88271563,0.00019932,2]
[387171104,1758606639180,-322.6107,0.00019932,2]
[387171105,1758606639194,-151.0,0.00019932,2]
[387171106,1758606639206,-465.0559248,0.00019932,2]
[387171107,1758606639218,-551.07536759,0.00019932,2]
[387171108,1758606639229,-151.0,0.00019932,2]
[387171109,1758606639241,-541.70048599,0.00019932,2]
[387171110,1758606639252,-646.65982734,0.00019932,2]
[387171111,1758606639264,-500.0,0.00019932,2]
[387171112,1758606639275,-500.0,0.00019932,2]
[387171113,1758606639287,-200.0,0.00019932,2]
[387171114,1758606639298,-151.0,0.00019932,2]
[387171115,1758606639310,-151.0,0.00019932,2]
[387171116,1758606639321,-151.0,0.00019932,2]
[387171117,1758606639332,-151.0,0.00019932,2]
[387171118,1758606639343,-151.0,0.00019932,2]
[387171119,1758606639355,-266.4064294,0.00019932,2]
[387171120,1758606639366,-150.0,0.00019938,4]
[387171121,1758606639377,-400.0,0.00019943,2]
[387171122,1758606639389,-400.0,0.00019943,2]
[387171123,1758606639400,-400.0,0.00019943,2]
[387171124,1758606639411,-400.0,0.00019943,2]
[387171125,1758606639423,-400.0,0.00019943,2]
[387171126,1758606639435,-400.0,0.00019943,2]
[387171127,1758606639447,-408.50853215,0.00019943,2]
[387171128,1758606639458,-400.0,0.00019943,2]
[387171129,1758606639470,-400.0,0.00019943,2]
[387171130,1758606639481,-400.0,0.00019943,2]
[387171131,1758606639492,-400.0,0.00019943,2]
[387171132,1758606639504,-500.0,0.00019943,2]
[387171133,1758606639515,-400.0,0.00019943,2]
[387171134,1758606639527,-156.07132702,0.00019943,2]
[387171135,1758606639539,-400.0,0.00019943,2]
[387171136,1758606639550,-400.0,0.00019943,2]
[387171137,1758606639563,-400.0,0.00019943,2]
[387171138,1758606639573,-400.0,0.00019943,2]
[387171139,1758606639585,-400.0,0.00019943,2]
[387171140,1758606639596,-400.0,0.00019943,2]
[387171141,1758606639607,-400.0,0.00019943,2]
[387171142,1758606639619,-400.0,0.00019943,2]
[387171143,1758606639632,-400.0,0.00019943,2]
[387171144,1758606639643,-400.0,0.00019943,2]
[387171145,1758606639655,-400.0,0.00019943,2]
[387171146,1758606639667,-400.0,0.00019943,2]
[387171147,1758606639678,-400.0,0.00019943,2]
[387171148,1758606639689,-400.0,0.00019943,2]
[387171149,1758606639701,-400.0,0.00019943,2]
[387171150,1758606639712,-400.0,0.00019943,2]
[387171151,1758606639723,-400.0,0.00019943,2]
[387171152,1758606639735,-400.0,0.00019943,2]
[387171153,1758606639747,-400.0,0.00019943,2]
[387171154,1758606639758,-400.0,0.00019943,2]
[387171155,1758606639770,-400.0,0.00019943,2]
[387171156,1758606639782,-400.0,0.00019943,2]
[387171157,1758606639795,-400.0,0.00019943,2]
[387171158,1758606639808,-400.0,0.00019943,2]
[387171159,1758606639820,-400.0,0.00019943,2]
[387171160,1758606639832,-400.0,0.00019943,2]
[387171161,1758606639844,-400.0,0.00019943,2]
[387171162,1758606639856,-400.0,0.00019943,2]
[387171163,1758606639868,-400.0,0.00019943,2]
[387171164,1758606639881,-400.0,0.00019943,2]
[387171165,1758606639893,-405.42341953,0.00019943,2]
[387171167,1758606639905,-400.0,0.00019943,2]
[387171169,1758606639918,-400.0,0.00019943,2]
[387171171,1758606639930,-400.0,0.00019943,2]
[387171172,1758606639942,-400.0,0.00019943,2]
[387171173,1758606639953,-400.0,0.00019943,2]
[387171174,1758606639965,-400.0,0.00019943,2]
[387171176,1758606639976,-400.0,0.00019943,2]
[387171178,1758606639987,-400.0,0.00019943,2]
[387171180,1758606639999,-400.0,0.00019943,2]
[387171181,1758606640010,-400.0,0.00019943,2]
[387171182,1758606640022,-400.0,0.00019943,2]
[387171183,1758606640033,-400.0,0.00019943,2]
[387171185,1758606640045,-451.3678879,0.00019943,2]
[387171186,1758606640057,-400.0,0.00019943,2]
[387171187,1758606640068,-400.0,0.00019943,2]
[387171188,1758606640080,-400.0,0.00019943,2]
[387171189,1758606640091,-400.0,0.00019943,2]
[387171190,1758606640103,-234.96,0.00019943,2]
[387171191,1758606640115,-400.0,0.00019943,2]
[387171192,1758606640127,-400.0,0.00019943,2]
[387171193,1758606640138,-400.0,0.00019943,2]
[387171194,1758606640150,-400.0,0.00019943,2]
[387171195,1758606640161,-400.0,0.00019943,2]
[387171196,1758606640173,-401.72305044,0.00019943,2]
[387171197,1758606640184,-400.0,0.00019943,2]
[387171198,1758606640196,-401.66461743,0.00019943,2]
[387171199,1758606640207,-400.0,0.00019943,2]
[387171200,1758606640219,-400.0,0.00019943,2]
[387171201,1758606640230,-400.0,0.00019943,2]
[387171202,1758606640242,-400.0,0.00019943,2]
[387171203,1758606640253,-400.0,0.00019943,2]
[387171204,1758606640264,-400.0,0.00019943,2]
[387171205,1758606640274,-400.0,0.00019943,2]
[387171206,1758606640285,-400.0,0.00019943,2]
[387171207,1758606640296,-400.0,0.00019943,2]
[387171208,1758606640306,-400.0,0.00019943,2]
[387171209,1758606640318,-400.0,0.00019943,2]
[387171210,1758606640329,-400.0,0.00019943,2]
[387171211,1758606640339,-400.0,0.00019943,2]
[387171212,1758606640350,-400.0,0.00019943,2]
[387171213,1758606640361,-400.0,0.00019943,2]
[387171214,1758606640372,-414.47,0.00019943,2]
[387171215,1758606640383,-400.0,0.00019943,2]
[387171216,1758606640394,-400.0,0.00019943,2]
[387171217,1758606640405,-400.0,0.00019943,2]
[387171218,1758606640415,-400.0,0.00019943,2]
[387171219,1758606640426,-400.0,0.00019943,2]
[387171220,1758606640437,-400.0,0.00019943,2]
[387171221,1758606640448,-400.0,0.00019943,2]
[387171222,1758606640458,-400.0,0.00019943,2]
[387171223,1758606640469,-400.0,0.00019943,2]
[387171224,1758606640479,-400.0,0.00019943,2]
[387171225,1758606640490,-400.0,0.00019943,2]
[387171226,1758606640501,-400.0,0.00019943,2]
[387171227,1758606640511,-400.0,0.00019943,2]
[387171228,1758606640522,-400.0,0.00019943,2]
[387171229,1758606640533,-400.0,0.00019943,2]
[387171230,1758606640544,-400.0,0.00019943,2]
[387171231,1758606640555,-400.0,0.00019943,2]
[387171232,1758606640567,-400.0,0.00019943,2]
[387171233,1758606640578,-400.0,0.00019943,2]
[387171234,1758606640588,-400.0,0.00019943,2]
[387171235,1758606640599,-400.0,0.00019943,2]
[387171236,1758606640610,-400.0,0.00019943,2]
[387171237,1758606640621,-400.0,0.00019943,2]
[387171238,1758606640632,-400.0,0.00019943,2]
[387171239,1758606640643,-400.0,0.00019943,2]
[387171240,1758606640653,-401.89360153,0.00019943,2]
[387171241,1758606640664,-400.0,0.00019943,2]
[387171243,1758606640675,-400.0,0.00019943,2]
[387171245,1758606640686,-400.0,0.00019943,2]
[387171247,1758606640697,-400.0,0.00019943,2]
[387171249,1758606640707,-400.0,0.00019943,2]
[387171251,1758606640718,-400.0,0.00019943,2]
[387171253,1758606640728,-400.0,0.00019943,2]
[387171255,1758606640739,-400.0,0.00019943,2]
[387171257,1758606640750,-400.0,0.00019943,2]
[387171260,1758606640761,-400.0,0.00019943,2]
[387171262,1758606640772,-400.0,0.00019943,2]
[387171264,1758606640783,-400.0,0.00019943,2]
[387171266,1758606640794,-400.0,0.00019943,2]
[387171269,1758606640809,-400.0,0.00019943,2]
[387171271,1758606640820,-400.0,0.00019943,2]
[387171273,1758606640831,-400.0,0.00019943,2]
[387171275,1758606640844,-400.0,0.00019943,2]
[387171277,1758606640855,-400.0,0.00019943,2]
[387171280,1758606640866,-400.0,0.00019943,2]
[387171282,1758606640877,-400.0,0.00019943,2]
[387171284,1758606640889,-400.0,0.00019943,2]
[387171286,1758606640900,-400.0,0.00019943,2]
[387171288,1758606640911,-400.0,0.00019943,2]
[387171291,1758606640923,-400.0,0.00019943,2]
[387171293,1758606640934,-400.0,0.00019943,2]
[387171295,1758606640945,-400.0,0.00019943,2]
[387171336,1758606641335,-400.0,0.00019943,2]
[387171340,1758606641361,-303.63921228,0.00019943,2]
[387171344,1758606641385,-400.0,0.00019943,2]
[387171346,1758606641395,-403.10310247,0.00019943,2]
[387171348,1758606641404,-400.0,0.00019943,2]
[387171350,1758606641413,-400.0,0.00019943,2]
[387171352,1758606641422,-400.0,0.00019943,2]
[387171354,1758606641431,-400.0,0.00019943,2]
[387171356,1758606641440,-500.0,0.00019943,2]
[387171358,1758606641450,-500.0,0.00019943,2]
[387171360,1758606641460,-400.0,0.00019943,2]
[387171362,1758606641469,-400.0,0.00019943,2]
[387171364,1758606641478,-400.0,0.00019943,2]
[387171366,1758606641487,-400.0,0.00019943,2]
[387171368,1758606641496,-400.0,0.00019943,2]
[387171370,1758606641505,-1000.0,0.00019943,2]
[387171372,1758606641515,-400.0,0.00019943,2]
[387171374,1758606641524,-400.0,0.00019943,2]
[387171376,1758606641533,-500.0,0.00019944,2]
[387171378,1758606641543,-400.0,0.00019944,2]
[387171380,1758606641553,-406.01888546,0.00019944,2]
[387171382,1758606641563,-391.93,0.00019944,2]
[387171384,1758606641573,-400.0,0.00019944,2]
[387171386,1758606641582,-400.0,0.00019944,2]
[387171388,1758606641591,-400.0,0.00019944,2]
[387171390,1758606641600,-400.0,0.00019944,2]
[387171392,1758606641609,-400.0,0.00019944,2]
[387171394,1758606641619,-400.0,0.00019944,2]
[387171396,1758606641628,-400.0,0.00019944,2]
[387171398,1758606641637,-400.0,0.00019944,2]
[387171400,1758606641646,-501.30364143,0.00019944,2]
[387171402,1758606641656,-400.0,0.00019944,2]
[387171404,1758606641664,-400.0,0.00019944,2]
[387171406,1758606641673,-400.0,0.00019944,2]
[387171408,1758606641683,-400.0,0.00019944,2]
[387171410,1758606641692,-400.0,0.00019944,2]
[387171412,1758606641701,-546.26,0.00019944,2]
[387171414,1758606641711,-400.0,0.00019944,2]
[387171416,1758606641720,-459.17,0.00019944,2]
[387171418,1758606641730,-400.0,0.00019944,2]
[387171420,1758606641740,-594.39,0.00019944,2]
[387171423,1758606641749,-167.146727,0.00019944,2]
[387171425,1758606641759,-400.0,0.00019944,2]
[387171427,1758606641768,-400.0,0.00019944,2]
[387171429,1758606641777,-400.0,0.00019944,2]
[387171431,1758606641787,-413.61,0.00019944,2]
[387171433,1758606641797,-1791.94,0.00019944,2]
[387171435,1758606641809,-400.0,0.00019944,2]
[387171436,1758606641819,-727.44,0.00019944,2]
[387171438,1758606641828,-400.0,0.00019944,2]
[387171441,1758606641838,-424.1,0.00019944,2]
[387171443,1758606641849,-680.28,0.00019944,2]
[387171445,1758606641858,-400.0,0.00019944,2]
[387171447,1758606641869,-400.0,0.00019944,2]
[387171449,1758606641880,-740.8,0.00019944,2]
[387171450,1758606641890,-780.25,0.00019944,2]
[387171452,1758606641901,-787.95,0.00019944,2]
[387171454,1758606641911,-400.9,0.00019944,2]
[387171456,1758606641920,-573.0,0.00019944,2]
[387171458,1758606641929,-439.84,0.00019944,2]
[387171460,1758606641938,-807.44,0.00019944,2]
[387171462,1758606641949,-1136.38,0.00019944,2]
[387171464,1758606641958,-2423.02,0.00019944,2]
[387171466,1758606641968,-9430.5388425,0.00019945,2]
[387171469,1758606641978,-788.13,0.0001997,2]
[387171471,1758606641987,-500.43032681,0.00019973,2]
[387171473,1758606641996,-500.0,0.00019973,2]
[387171475,1758606642005,-500.0,0.00019973,2]
[387171477,1758606642015,-500.0,0.00019973,2]
[387171479,1758606642024,-502.37826808,0.00019973,2]
[387171481,1758606642034,-203.27063337,0.00019973,2]
[387171482,1758606642043,-500.0,0.00019973,2]
[387171484,1758606642052,-500.0,0.00019973,2]
[387171486,1758606642061,-500.0,0.00019973,2]
[387171488,1758606642070,-500.0,0.00019973,2]
[387171490,1758606642080,-500.51349613,0.00019973,2]
[387171492,1758606642089,-500.0,0.00019973,2]
[387171494,1758606642098,-272.37460516,0.00019973,2]
[387171496,1758606642108,-607.69395068,0.00019973,2]
[387171498,1758606642118,-500.0,0.00019973,2]
[387171501,1758606642127,-400.8044693,0.00019975,2]
[387171502,1758606642137,-400.0,0.00019975,2]
[387171504,1758606642146,-400.0,0.00019975,2]
[387171506,1758606642155,-400.0,0.00019975,2]
[387171509,1758606642165,-400.0,0.00019975,2]
[387171511,1758606642174,-563.0,0.00019975,2]
[387171513,1758606642183,-400.0,0.00019975,2]
[387171514,1758606642193,-502.61,0.00019975,2]
[387171516,1758606642203,-502.61,0.00019975,2]
[387171519,1758606642212,-400.0,0.00019975,2]
[387171521,1758606642221,-400.0,0.00019975,2]
[387171522,1758606642230,-400.0,0.00019975,2]
[387171524,1758606642240,-400.0,0.00019975,2]
[387171527,1758606642249,-400.0,0.00019975,2]
[387171529,1758606642259,-454.75,0.00019975,2]
[387171531,1758606642268,-400.0,0.00019975,2]
[387171533,1758606642278,-400.0,0.00019975,2]
[387171535,1758606642288,-400.0,0.00019975,2]
[387171537,1758606642298,-604.44,0.00019975,2]
[387171539,1758606642307,-400.0,0.00019975,2]
[387171541,1758606642316,-533.49,0.00019975,2]
[387171543,1758606642326,-500.0,0.00019975,2]
[387171545,1758606642335,-500.0,0.00019975,2]
[387171547,1758606642345,-400.0,0.00019975,2]
[387171549,1758606642354,-694.1,0.00019975,2]
[387171551,1758606642363,-400.0,0.00019975,2]
[387171553,1758606642372,-400.0,0.00019975,2]
[387171554,1758606642381,-400.0,0.00019975,2]
[387171557,1758606642390,-400.0,0.00019975,2]
[387171558,1758606642400,-400.0,0.00019975,2]
[387171559,1758606642410,-404.79329019,0.00019975,2]
[387171560,1758606642419,-402.23227989,0.00019975,2]
[387171561,1758606642429,-422.59,0.00019975,2]
[387171562,1758606642438,-400.98586275,0.00019975,2]
[387171563,1758606642449,-400.0,0.00019975,2]
[387171564,1758606642458,-400.0,0.00019975,2]
[387171565,1758606642468,-400.0,0.00019975,2]
[387171566,1758606642477,-400.0,0.00019975,2]
[387171567,1758606642487,-333.15653962,0.00019975,2]
[387171568,1758606642496,-717.78,0.00019975,2]
[387171570,1758606642505,-400.0,0.00019975,2]
[387171572,1758606642514,-400.0,0.00019975,2]
[387171574,1758606642523,-400.0,0.00019975,2]
[387171576,1758606642532,-400.0,0.00019975,2]
[387171578,1758606642542,-431.15,0.00019975,2]
[387171580,1758606642551,-166.25,0.00019975,2]
[387171582,1758606642560,-400.0,0.00019975,2]
[387171585,1758606642569,-400.0,0.00019975,2]
[387171586,1758606642579,-400.0,0.00019975,2]
[387171589,1758606642589,-400.0,0.00019975,2]
[387171591,1758606642598,-427.27,0.00019975,2]
[387171592,1758606642607,-402.66633834,0.00019975,2]
[387171595,1758606642617,-400.0,0.00019975,2]
[387171596,1758606642626,-614.75,0.00019975,2]
[387171598,1758606642635,-396.08200069,0.00019975,2]
[387171600,1758606642645,-400.0,0.00019975,2]
[387171603,1758606642654,-400.0,0.00019975,2]
[387171604,1758606642663,-400.0,0.00019975,2]
[387171606,1758606642672,-400.0,0.00019975,2]
[387171608,1758606642682,-400.0,0.00019975,2]
[387171610,1758606642691,-400.0,0.00019975,2]
[387171613,1758606642701,-400.0,0.00019975,2]
[387171615,1758606642710,-400.0,0.00019975,2]
[387171616,1758606642719,-400.0,0.00019975,2]
[387171618,1758606642729,-669.49,0.00019975,2]
[387171620,1758606642739,-400.0,0.00019975,2]
[387171623,1758606642750,-401.4619301,0.00019975,2]
[387171625,1758606642759,-400.0,0.00019975,2]
[387171627,1758606642768,-400.0,0.00019975,2]
[387171629,1758606642778,-400.0,0.00019975,2]
[387171631,1758606642787,-400.0,0.00019975,2]
[387171633,1758606642801,-400.0,0.00019975,2]
[387171635,1758606642810,-404.24593124,0.00019975,2]
[387171637,1758606642819,-400.0,0.00019975,2]
[387171639,1758606642828,-400.58490738,0.00019975,2]
[387171641,1758606642838,-400.0,0.00019975,2]
[387171642,1758606642848,-400.0,0.00019975,2]
[387171644,1758606642858,-400.0,0.00019975,2]
[387171646,1758606642867,-400.0,0.00019975,2]
[387171649,1758606642878,-400.0,0.00019975,2]
[387171652,1758606642887,-513.87668892,0.00019975,2]
[387171655,1758606642897,-418.8,0.00019975,2]
[387171657,1758606642906,-573.35,0.00019975,2]
[387171659,1758606642915,-400.0,0.00019975,2]
[387171661,1758606642925,-403.2,0.00019975,2]
[387171664,1758606642935,-400.0,0.00019975,2]
[387171668,1758606642944,-400.0,0.00019975,2]
[387171670,1758606642954,-400.0,0.00019975,2]
[387171673,1758606642963,-400.0,0.00019975,2]
[387171675,1758606642973,-1000.0,0.00019975,2]
[387171677,1758606642982,-400.0,0.00019975,2]
[387171679,1758606642992,-400.0,0.00019975,2]
[387171682,1758606643001,-272.17191306,0.00019975,2]
[387171684,1758606643010,-400.0,0.00019975,2]
[387171686,1758606643020,-400.0,0.00019975,2]
[387171688,1758606643030,-400.0,0.00019975,2]
[387171690,1758606643039,-685.05,0.00019975,2]
[387171692,1758606643049,-400.0,0.00019975,2]
[387171694,1758606643058,-400.0,0.00019975,2]
[387171696,1758606643067,-400.0,0.00019975,2]
[387171698,1758606643077,-400.0,0.00019975,2]
[387171700,1758606643087,-400.0,0.00019975,2]
[387171702,1758606643096,-435.99,0.00019975,2]
[387171704,1758606643105,-400.0,0.00019975,2]
[387171706,1758606643115,-400.0,0.00019975,2]
[387171708,1758606643125,-400.0,0.00019975,2]
[387171710,1758606643135,-592.9,0.00019975,2]
[387171712,1758606643145,-401.29207513,0.00019975,2]
[387171714,1758606643155,-400.0,0.00019975,2]
[387171716,1758606643164,-400.0,0.00019975,2]
[387171718,1758606643174,-528.93,0.00019975,2]
[387171720,1758606643183,-400.0,0.00019975,2]
[387171722,1758606643192,-288.52358045,0.00019975,2]
[387171724,1758606643202,-404.42768658,0.00019975,2]
[387171726,1758606643212,-400.0,0.00019975,2]
[387171728,1758606643222,-796.37,0.00019975,2]
[387171730,1758606643231,-406.19636967,0.00019975,2]
[387171732,1758606643241,-400.0,0.00019975,2]
[387171734,1758606643251,-461.3,0.00019975,2]
[387171736,1758606643260,-400.0,0.00019975,2]
[387171738,1758606643269,-400.0,0.00019975,2]
[387171740,1758606643279,-400.0,0.00019975,2]
[387171742,1758606643288,-408.01738172,0.00019975,2]
[387171744,1758606643298,-401.91184094,0.00019975,2]
[387171746,1758606643307,-400.0,0.00019975,2]
[387171748,1758606643318,-400.0,0.00019975,2]
[387171750,1758606643327,-400.0,0.00019975,2]
[387171752,1758606643337,-400.0,0.00019975,2]
[387171754,1758606643346,-400.0,0.00019975,2]
[387171756,1758606643356,-551.65,0.00019975,2]
[387171758,1758606643366,-445.76,0.00019975,2]
[387171760,1758606643375,-620.26,0.00019975,2]
[387171762,1758606643385,-401.61227857,0.00019975,2]
[387171764,1758606643394,-400.0,0.00019975,2]
[387171766,1758606643404,-474.03,0.00019975,2]
[387171769,1758606643413,-400.0,0.00019975,2]
[387171771,1758606643423,-400.0,0.00019975,2]
[387171773,1758606643432,-400.90347737,0.00019975,2]
[387171775,1758606643442,-400.0,0.00019975,2]
[387171777,1758606643452,-400.0,0.00019975,2]
[387171779,1758606643461,-400.0,0.00019975,2]
[387171781,1758606643471,-400.0,0.00019975,2]
[387171783,1758606643480,-400.0,0.00019975,2]
[387171785,1758606643490,-1134.69,0.00019975,2]
[387171786,1758606643499,-553.2,0.00019975,2]
[387171788,1758606643509,-400.0,0.00019975,2]
[387171790,1758606643519,-400.0,0.00019975,2]
[387171793,1758606643529,-400.0,0.00019975,2]
[387171795,1758606643538,-347.67845127,0.00019975,2]
[387171797,1758606643548,-400.0,0.00019975,2]
[387171799,1758606643558,-400.0,0.00019975,2]
[387171801,1758606643567,-560.87,0.00019975,2]
[387171803,1758606643576,-669.97,0.00019975,2]
[387171805,1758606643585,-402.00100239,0.00019975,2]
[387171807,1758606643594,-401.33571602,0.00019975,2]
[387171809,1758606643604,-518.47,0.00019975,2]
[387171811,1758606643613,-603.36,0.00019975,2]
[387171813,1758606643622,-400.0,0.00019975,2]
[387171815,1758606643632,-400.0,0.00019975,2]
[387171817,1758606643641,-507.24,0.00019975,2]
[387171819,1758606643651,-400.55919187,0.00019975,2]
[387171821,1758606643662,-1226.65,0.00019975,2]
[387171823,1758606643672,-400.63904707,0.00019975,2]
[387171825,1758606643681,-400.0,0.00019975,2]
[387171827,1758606643691,-510.08,0.00019975,2]
[387171829,1758606643703,-400.0,0.00019975,2]
[387171831,1758606643712,-2244.82,0.00019975,2]
[387171833,1758606643722,-400.0,0.00019975,2]
[387171835,1758606643731,-400.0,0.00019975,2]
[387171837,1758606643741,-400.0,0.00019975,2]
[387171839,1758606643751,-400.0,0.00019975,2]
[387171841,1758606643760,-3137.54,0.00019975,2]
[387171843,1758606643769,-400.0,0.00019975,2]
[387171845,1758606643779,-400.0,0.00019975,2]
[387171847,1758606643789,-3479.82,0.00019975,2]
[387171849,1758606643802,-478.17,0.00019975,2]
[387171851,1758606643811,-400.0,0.00019975,2]
[387171853,1758606643821,-1313.4,0.00019975,2]
[387171855,1758606643831,-400.0,0.00019975,2]
[387171857,1758606643843,-400.0,0.00019975,2]
[387171859,1758606643853,-766.42,0.00019975,2]
[387171861,1758606643862,-400.0,0.00019975,2]
[387171863,1758606643873,-400.0,0.00019975,2]
[387171865,1758606643883,-400.0,0.00019975,2]
[387171867,1758606643892,-631.18,0.00019975,2]
[387171869,1758606643902,-2210.4385497,0.00019976,2]
[387171871,1758606643912,-6494.121732,0.00019976,2]
[387171873,1758606643922,-409.59743469,0.0001999,2]
[387171875,1758606643932,-500.0,0.00019993,2]
[387171878,1758606643942,-470.21,0.00019994,2]
[387171880,1758606643954,-400.0,0.00019994,2]
[387171882,1758606643964,-400.0,0.00019994,2]
[387171884,1758606643973,-400.0,0.00019994,2]
[387171886,1758606643984,-404.26825369,0.00019994,2]
[387171888,1758606643993,-400.0,0.00019994,2]
[387171890,1758606644002,-400.0,0.00019994,2]
[387171892,1758606644012,-403.31663424,0.00019994,2]
[387171894,1758606644021,-400.0,0.00019994,2]
[387171896,1758606644031,-400.0,0.00019994,2]
[387171898,1758606644041,-400.0,0.00019994,2]
[387171900,1758606644051,-400.0,0.00019994,2]
[387171902,1758606644061,-400.0,0.00019994,2]
[387171904,1758606644071,-400.0,0.00019994,2]
[387171906,1758606644080,-400.0,0.00019994,2]
[387171908,1758606644090,-400.0,0.00019994,2]
[387171910,1758606644100,-536.86194931,0.00019994,2]
[387171912,1758606644110,-479.31,0.00019994,2]
[387171914,1758606644119,-400.0,0.00019994,2]
[387171916,1758606644129,-460.67,0.00019994,2]
[387171918,1758606644138,-626.98,0.00019994,2]
[387171920,1758606644148,-400.0,0.00019994,2]
[387171922,1758606644157,-400.0,0.00019994,2]
[387171924,1758606644167,-432.65204784,0.00019994,2]
[387171926,1758606644176,-400.0,0.00019994,2]
[387171928,1758606644186,-400.0,0.00019994,2]
[387171930,1758606644195,-600.75,0.00019994,2]
[387171932,1758606644205,-400.0,0.00019994,2]
[387171934,1758606644215,-595.41,0.00019994,2]
[387171936,1758606644224,-400.0,0.00019994,2]
[387171938,1758606644234,-400.0,0.00019994,2]
[387171940,1758606644244,-400.0,0.00019994,2]
[387171942,1758606644253,-400.0,0.00019994,2]
[387171944,1758606644264,-509.16,0.00019994,2]
[387171946,1758606644273,-400.0,0.00019994,2]
[387171948,1758606644282,-400.0,0.00019994,2]
[387171950,1758606644292,-400.0,0.00019994,2]
[387171952,1758606644302,-609.2,0.00019994,2]
[387171954,1758606644311,-400.0,0.00019994,2]
[387171956,1758606644320,-400.0,0.00019994,2]
[387171958,1758606644330,-400.0,0.00019994,2]
[387171960,1758606644339,-400.0,0.00019994,2]
[387171962,1758606644350,-400.0,0.00019994,2]
[387171964,1758606644359,-400.0,0.00019994,2]
[387171966,1758606644369,-400.0,0.00019994,2]
[387171969,1758606644379,-572.39,0.00019994,2]
[387171971,1758606644389,-400.0,0.00019994,2]
[387171973,1758606644398,-400.0,0.00019994,2]
[387171975,1758606644408,-400.0,0.00019994,2]
[387171996,1758606644592,-710.43,0.00019994,2]
[387171999,1758606644613,-400.0,0.00019994,2]
[387172001,1758606644623,-400.0,0.00019994,2]
[387172003,1758606644632,-633.16,0.00019994,2]
[387172005,1758606644642,-400.0,0.00019994,2]
[387172007,1758606644652,-534.35442873,0.00019994,2]
[387172009,1758606644661,-400.0,0.00019994,2]